[Event "*** Titled Tuesday Blitz"]
[Site "Chess.com"]
[Date "2021.03.09"]
[Round "1"]
[White "IECS12"]
[Black "alejogarcia1999"]
[Result "1-0"]
[WhiteElo "2241"]
[BlackElo "2527"]
[TimeControl "180+1"]
[EndTime "10:08:14 PST"]
[Termination "IECS12 won by resignation"]

1. d4 {[%clk 0:03:00.9]} 1... Nf6 {[%clk 0:02:55.9]} 2. Bf4 {[%clk 0:03:01.3]}
2... g6 {[%clk 0:02:55.9]} 3. Nc3 {[%clk 0:03:01.3]} 3... Bg7 {[%clk 0:02:56]}
4. e4 {[%clk 0:03:01.4]} 4... d6 {[%clk 0:02:53.9]} 5. Qd2 {[%clk 0:03:01.3]}
5... h6 {[%clk 0:02:51.8]} 6. O-O-O {[%clk 0:02:59.2]} 6... g5 {[%clk 0:02:49]}
7. Bg3 {[%clk 0:02:57.7]} 7... Nh5 {[%clk 0:02:48]} 8. f3 {[%clk 0:02:56.5]}
8... Nc6 {[%clk 0:02:45.1]} 9. Bf2 {[%clk 0:02:55.5]} 9... e5 {[%clk 0:02:43.9]}
10. Nge2 {[%clk 0:02:50.2]} 10... exd4 {[%clk 0:02:35]} 11. Nxd4 {[%clk
0:02:51.1]} 11... Nxd4 {[%clk 0:02:35.2]} 12. Bxd4 {[%clk 0:02:52]} 12... Bxd4
{[%clk 0:02:35.2]} 13. Qxd4 {[%clk 0:02:52.9]} 13... Qf6 {[%clk 0:02:35.5]} 14.
Nd5 {[%clk 0:02:26.7]} 14... Qxd4 {[%clk 0:02:30.3]} 15. Rxd4 {[%clk 0:02:27.6]}
15... Kd8 {[%clk 0:02:17.3]} 16. Bc4 {[%clk 0:02:21.1]} 16... Be6 {[%clk
0:02:11.8]} 17. Rhd1 {[%clk 0:02:12.4]} 17... c6 {[%clk 0:00:47.9]} 18. Ne3
{[%clk 0:02:11.8]} 18... Bxc4 {[%clk 0:00:47.7]} 19. Nxc4 {[%clk 0:02:12.7]}
19... Kc7 {[%clk 0:00:40.6]} 20. Nxd6 {[%clk 0:02:12.4]} 20... f6 {[%clk
0:00:35.1]} 21. Nf5 {[%clk 0:02:08.7]} 21... Nf4 {[%clk 0:00:31.5]} 22. Rd7+
{[%clk 0:01:56.2]} 22... Kb6 {[%clk 0:00:31.4]} 23. g3 {[%clk 0:01:51]} 23...
Ne6 {[%clk 0:00:30.2]} 24. R7d6 {[%clk 0:01:29.1]} 24... Rae8 {[%clk 0:00:27.5]}
25. b3 {[%clk 0:01:05.8]} 25... h5 {[%clk 0:00:27.3]} 26. Kb2 {[%clk 0:01:03.8]}
26... h4 {[%clk 0:00:27.4]} 27. a4 {[%clk 0:00:59.1]} 27... hxg3 {[%clk
0:00:25.1]} 28. hxg3 {[%clk 0:01:00]} 28... Rh2 {[%clk 0:00:23.1]} 29. Rd7
{[%clk 0:00:51.4]} 29... a5 {[%clk 0:00:19.5]} 30. Rxb7+ {[%clk 0:00:50.6]}
30... Kxb7 {[%clk 0:00:17.3]} 31. Nd6+ {[%clk 0:00:51.1]} 31... Kb6 {[%clk
0:00:17.5]} 32. Nxe8 {[%clk 0:00:50.7]} 32... Rf2 {[%clk 0:00:17.9]} 33. Rd3
{[%clk 0:00:46.5]} 33... Nc5 {[%clk 0:00:17.4]} 34. Rc3 {[%clk 0:00:44.2]} 34...
Nd7 {[%clk 0:00:17.3]} 35. Nd6 {[%clk 0:00:43.1]} 35... Ne5 {[%clk 0:00:17.5]}
36. Nc4+ {[%clk 0:00:40.7]} 36... Nxc4+ {[%clk 0:00:17.7]} 37. bxc4 {[%clk
0:00:41.6]} 37... Kc5 {[%clk 0:00:18.1]} 38. Kb3 {[%clk 0:00:41.6]} 38... Rg2
{[%clk 0:00:17.3]} 39. g4 {[%clk 0:00:34.6]} 39... Rg1 {[%clk 0:00:17]} 40. Rd3
{[%clk 0:00:31.4]} 40... Rb1+ {[%clk 0:00:17]} 41. Ka2 {[%clk 0:00:30.1]} 41...
Rb4 {[%clk 0:00:17.2]} 42. Ka3 {[%clk 0:00:13.7]} 42... Rxc4 {[%clk 0:00:16.6]}
43. c3 {[%clk 0:00:13.3]} 43... Kb6 {[%clk 0:00:15.8]} 44. Kb3 {[%clk
0:00:13.1]} 44... Rc5 {[%clk 0:00:14.9]} 45. Rd6 {[%clk 0:00:13.6]} 45... Re5
{[%clk 0:00:13.5]} 46. Rxf6 {[%clk 0:00:13.3]} 46... Re7 {[%clk 0:00:13.8]} 47.
Rf5 {[%clk 0:00:13.6]} 47... Re8 {[%clk 0:00:13.3]} 48. Rxg5 {[%clk 0:00:12.7]}
48... Rf8 {[%clk 0:00:14.2]} 49. Rf5 {[%clk 0:00:13.6]} 49... Rg8 {[%clk
0:00:14.6]} 50. e5 {[%clk 0:00:13.4]} 50... c5 {[%clk 0:00:15.5]} 51. Kc4 {[%clk
0:00:12.6]} 51... Kc7 {[%clk 0:00:14.6]} 52. Rf6 {[%clk 0:00:12.8]} 52... Re8
{[%clk 0:00:14.5]} 53. Kxc5 {[%clk 0:00:13.2]} 53... Rxe5+ {[%clk 0:00:14.7]}
54. Kd4 {[%clk 0:00:14.1]} 54... Re2 {[%clk 0:00:15]} 55. g5 {[%clk 0:00:14.2]}
55... Rd2+ {[%clk 0:00:15.3]} 56. Ke3 {[%clk 0:00:14.1]} 56... Rb2 {[%clk
0:00:15.6]} 57. g6 {[%clk 0:00:13.8]} 57... Rg2 {[%clk 0:00:15.5]} 58. Rf7+
{[%clk 0:00:12.4]} 58... Kd8 {[%clk 0:00:16.2]} 59. g7 {[%clk 0:00:13.3]} 59...
Ke8 {[%clk 0:00:15.7]} 60. Rf8+ {[%clk 0:00:13.4]} 1-0

[Event "*** Titled Tuesday Blitz"]
[Site "Chess.com"]
[Date "2021.03.09"]
[Round "1"]
[White "KubaGepard"]
[Black "Funo09"]
[Result "0-1"]
[WhiteElo "2395"]
[BlackElo "2721"]
[TimeControl "180+1"]
[EndTime "10:08:15 PST"]
[Termination "Funo09 won by checkmate"]

1. d4 {[%clk 0:03:00.9]} 1... Nf6 {[%clk 0:02:59.8]} 2. Nf3 {[%clk 0:02:59.1]}
2... e6 {[%clk 0:02:59.3]} 3. Bf4 {[%clk 0:02:57.8]} 3... d5 {[%clk 0:02:58.7]}
4. e3 {[%clk 0:02:58.1]} 4... Bd6 {[%clk 0:02:59]} 5. Bg3 {[%clk 0:02:58.6]}
5... c5 {[%clk 0:02:58.8]} 6. c3 {[%clk 0:02:53.8]} 6... O-O {[%clk 0:02:57.1]}
7. Nbd2 {[%clk 0:02:52.3]} 7... b6 {[%clk 0:02:53.1]} 8. Bd3 {[%clk 0:02:50.4]}
8... Ba6 {[%clk 0:02:53]} 9. Bxa6 {[%clk 0:02:48]} 9... Nxa6 {[%clk 0:02:53.9]}
10. Qe2 {[%clk 0:02:48.3]} 10... Nb8 {[%clk 0:02:53.6]} 11. e4 {[%clk
0:02:45.2]} 11... Be7 {[%clk 0:02:35.5]} 12. Bxb8 {[%clk 0:02:43.5]} 12... Rxb8
{[%clk 0:02:32.7]} 13. e5 {[%clk 0:02:43.8]} 13... Nd7 {[%clk 0:02:30.2]} 14.
O-O {[%clk 0:02:38.3]} 14... b5 {[%clk 0:02:30]} 15. dxc5 {[%clk 0:02:36.8]}
15... Nxc5 {[%clk 0:02:29.7]} 16. Nd4 {[%clk 0:02:32]} 16... Qb6 {[%clk
0:02:28.5]} 17. f4 {[%clk 0:02:25.3]} 17... b4 {[%clk 0:02:24.9]} 18. Rf3 {[%clk
0:02:20]} 18... Na4 {[%clk 0:02:15.8]} 19. Nb3 {[%clk 0:02:13.6]} 19... bxc3
{[%clk 0:02:12]} 20. bxc3 {[%clk 0:02:14.5]} 20... Rfc8 {[%clk 0:02:12.2]} 21.
Rc1 {[%clk 0:01:49]} 21... Rc4 {[%clk 0:01:53.1]} 22. Rg3 {[%clk 0:01:42.8]}
22... Rbc8 {[%clk 0:01:49.6]} 23. Qd2 {[%clk 0:01:31.4]} 23... Ba3 {[%clk
0:01:40.7]} 24. Rc2 {[%clk 0:01:27.3]} 24... Bb4 {[%clk 0:01:35.2]} 25. f5
{[%clk 0:01:07.1]} 25... exf5 {[%clk 0:01:27.8]} 26. Qg5 {[%clk 0:00:27.5]}
26... Bf8 {[%clk 0:00:44.5]} 27. Qxf5 {[%clk 0:00:22]} 27... Nxc3 {[%clk
0:00:29.1]} 28. Rf3 {[%clk 0:00:18]} 28... R8c7 {[%clk 0:00:24.4]} 29. e6 {[%clk
0:00:17.6]} 29... Rxd4 {[%clk 0:00:17.8]} 30. exf7+ {[%clk 0:00:15.8]} 30... Kh8
{[%clk 0:00:18.4]} 31. Nxd4 {[%clk 0:00:08.8]} 31... Qxd4+ {[%clk 0:00:19.3]}
32. Kh1 {[%clk 0:00:08.5]} 32... Re7 {[%clk 0:00:15]} 33. Rf1 {[%clk 0:00:08.1]}
33... Ne4 {[%clk 0:00:14.6]} 34. Qf3 {[%clk 0:00:07]} 34... Nf6 {[%clk
0:00:13.1]} 35. Qd1 {[%clk 0:00:06.9]} 35... Qe4 {[%clk 0:00:11.8]} 36. Rcf2
{[%clk 0:00:06.1]} 36... Rxf7 {[%clk 0:00:11.9]} 37. h3 {[%clk 0:00:05.3]} 37...
h6 {[%clk 0:00:12]} 38. Qf3 {[%clk 0:00:05.5]} 38... Qxf3 {[%clk 0:00:11.9]} 39.
Rxf3 {[%clk 0:00:06.4]} 39... d4 {[%clk 0:00:11.6]} 40. Kh2 {[%clk 0:00:07.3]}
40... Bd6+ {[%clk 0:00:11.7]} 41. Kh1 {[%clk 0:00:06.8]} 41... Rb7 {[%clk
0:00:12.6]} 42. Rd3 {[%clk 0:00:06.7]} 42... Be5 {[%clk 0:00:12.3]} 43. Rf5
{[%clk 0:00:06.7]} 43... Re7 {[%clk 0:00:11.8]} 44. g4 {[%clk 0:00:06.3]} 44...
Ne4 {[%clk 0:00:11.9]} 45. Kg2 {[%clk 0:00:06.6]} 45... Kh7 {[%clk 0:00:11.2]}
46. Rff3 {[%clk 0:00:06.3]} 46... Nc5 {[%clk 0:00:10.5]} 47. Ra3 {[%clk
0:00:05.9]} 47... Ne6 {[%clk 0:00:10.5]} 48. Rf1 {[%clk 0:00:06.3]} 48... Nf4+
{[%clk 0:00:10.8]} 49. Kf3 {[%clk 0:00:05.3]} 49... d3 {[%clk 0:00:11.2]} 50.
Ke4 {[%clk 0:00:05.2]} 50... Bb2+ {[%clk 0:00:10.7]} 51. Kxf4 {[%clk 0:00:04.2]}
51... Bxa3 {[%clk 0:00:11.6]} 52. Rd1 {[%clk 0:00:03.9]} 52... d2 {[%clk
0:00:11.9]} 53. Rxd2 {[%clk 0:00:04]} 53... Bc1 {[%clk 0:00:12]} 54. Kf3 {[%clk
0:00:04.9]} 54... Bxd2 {[%clk 0:00:12.8]} 55. h4 {[%clk 0:00:05.4]} 55... Re3+
{[%clk 0:00:13.1]} 56. Kf4 {[%clk 0:00:05.5]} 56... Ra3+ {[%clk 0:00:13.7]} 57.
Kf5 {[%clk 0:00:06.4]} 57... Rxa2 {[%clk 0:00:13.6]} 58. g5 {[%clk 0:00:07.3]}
58... hxg5 {[%clk 0:00:13.7]} 59. hxg5 {[%clk 0:00:08.2]} 59... g6+ {[%clk
0:00:14.6]} 60. Kf6 {[%clk 0:00:08.3]} 60... a5 {[%clk 0:00:15.5]} 61. Kf7
{[%clk 0:00:09.2]} 61... a4 {[%clk 0:00:16.4]} 62. Ke6 {[%clk 0:00:09.8]} 62...
a3 {[%clk 0:00:17.3]} 63. Kf6 {[%clk 0:00:10.7]} 63... Bc3+ {[%clk 0:00:18]} 64.
Ke6 {[%clk 0:00:11.6]} 64... Re2+ {[%clk 0:00:18.3]} 65. Kf7 {[%clk 0:00:11.4]}
65... a2 {[%clk 0:00:18.7]} 66. Kf8 {[%clk 0:00:12.3]} 66... a1=Q {[%clk
0:00:19.6]} 67. Kf7 {[%clk 0:00:12.4]} 67... Qf1# {[%clk 0:00:20.5]} 0-1

[Event "*** Titled Tuesday Blitz"]
[Site "Chess.com"]
[Date "2021.03.09"]
[Round "1"]
[White "StockholmMissile"]
[Black "Grineva_Marianna"]
[Result "1-0"]
[WhiteElo "2575"]
[BlackElo "2274"]
[TimeControl "180+1"]
[EndTime "10:08:22 PST"]
[Termination "StockholmMissile won by checkmate"]

1. d4 {[%clk 0:03:00.4]} 1... Nf6 {[%clk 0:02:57.9]} 2. c4 {[%clk 0:02:57.4]}
2... d6 {[%clk 0:02:58.3]} 3. Nf3 {[%clk 0:02:56.1]} 3... g6 {[%clk 0:02:58.7]}
4. g3 {[%clk 0:02:55.7]} 4... Bg7 {[%clk 0:02:59.2]} 5. Bg2 {[%clk 0:02:56.1]}
5... Nbd7 {[%clk 0:02:59.7]} 6. Nc3 {[%clk 0:02:56.2]} 6... c6 {[%clk
0:03:00.2]} 7. O-O {[%clk 0:02:56.3]} 7... O-O {[%clk 0:03:00.7]} 8. e4 {[%clk
0:02:56.3]} 8... e5 {[%clk 0:03:00.6]} 9. h3 {[%clk 0:02:54.9]} 9... Qc7 {[%clk
0:02:59.2]} 10. d5 {[%clk 0:02:53.6]} 10... c5 {[%clk 0:02:55.7]} 11. Ne1 {[%clk
0:02:37.7]} 11... a6 {[%clk 0:02:42.4]} 12. a4 {[%clk 0:02:35.2]} 12... Kh8
{[%clk 0:02:32.8]} 13. Nd3 {[%clk 0:02:32.2]} 13... Ng8 {[%clk 0:02:32.5]} 14.
f4 {[%clk 0:02:30.8]} 14... exf4 {[%clk 0:02:30.9]} 15. gxf4 {[%clk 0:02:29.5]}
15... f5 {[%clk 0:02:31.3]} 16. exf5 {[%clk 0:02:24.7]} 16... Rxf5 {[%clk
0:02:32.2]} 17. Be4 {[%clk 0:02:23.5]} 17... Rh5 {[%clk 0:02:28]} 18. Bg2 {[%clk
0:02:09.6]} 18... Bd4+ {[%clk 0:02:25.8]} 19. Kh2 {[%clk 0:02:08.4]} 19... Ndf6
{[%clk 0:02:26.2]} 20. Ne2 {[%clk 0:02:03.5]} 20... Ng4+ {[%clk 0:02:18.6]} 21.
Kg3 {[%clk 0:02:03.7]} 21... Ne3 {[%clk 0:02:12.6]} 22. Bxe3 {[%clk 0:02:02.3]}
22... Bxe3 {[%clk 0:02:13.5]} 23. Qe1 {[%clk 0:02:01.2]} 23... Qe7 {[%clk
0:02:07.9]} 24. Qc3+ {[%clk 0:01:53.1]} 24... Nf6 {[%clk 0:01:58.3]} 25. Rae1
{[%clk 0:01:48.6]} 25... Kg8 {[%clk 0:01:29.8]} 26. Ng1 {[%clk 0:01:42.9]} 26...
Ne4+ {[%clk 0:00:48.7]} 27. Bxe4 {[%clk 0:01:41]} 27... Qh4+ {[%clk 0:00:48.1]}
28. Kf3 {[%clk 0:01:35]} 28... Bd4 {[%clk 0:00:45.9]} 29. Qd2 {[%clk 0:01:18.5]}
29... Bxh3 {[%clk 0:00:31.4]} 30. Nxh3 {[%clk 0:01:17.1]} 30... Qxh3+ {[%clk
0:00:32.3]} 31. Ke2 {[%clk 0:01:17.6]} 31... Re8 {[%clk 0:00:18.8]} 32. Kd1
{[%clk 0:01:16.5]} 32... Qg3 {[%clk 0:00:14.2]} 33. Re2 {[%clk 0:01:10.7]} 33...
Rh3 {[%clk 0:00:12.7]} 34. Bf3 {[%clk 0:00:53.7]} 34... Rf8 {[%clk 0:00:08.6]}
35. Rg2 {[%clk 0:00:48.4]} 35... Qh4 {[%clk 0:00:09]} 36. Kc2 {[%clk 0:00:44.2]}
36... Qf6 {[%clk 0:00:09.2]} 37. Kb1 {[%clk 0:00:41]} 37... Re8 {[%clk
0:00:09.2]} 38. Re2 {[%clk 0:00:32.5]} 38... Rxe2 {[%clk 0:00:09.3]} 39. Qxe2
{[%clk 0:00:32.6]} 39... Kg7 {[%clk 0:00:09.8]} 40. Qe6 {[%clk 0:00:26.1]} 40...
Qxe6 {[%clk 0:00:08.7]} 41. dxe6 {[%clk 0:00:27]} 41... Kf6 {[%clk 0:00:09]} 42.
Nf2 {[%clk 0:00:22.3]} 42... Rh4 {[%clk 0:00:04.5]} 43. Bxb7 {[%clk 0:00:20.4]}
43... Ke7 {[%clk 0:00:04.4]} 44. Nd3 {[%clk 0:00:16]} 44... Rh3 {[%clk
0:00:04.4]} 45. Kc2 {[%clk 0:00:15.4]} 45... Rh2+ {[%clk 0:00:04]} 46. Kb3
{[%clk 0:00:14.4]} 46... h5 {[%clk 0:00:04.6]} 47. Bxa6 {[%clk 0:00:14]} 47...
h4 {[%clk 0:00:04.8]} 48. Ne1 {[%clk 0:00:14.1]} 48... h3 {[%clk 0:00:04.7]} 49.
Nf3 {[%clk 0:00:14.4]} 49... Re2 {[%clk 0:00:04.1]} 50. Bb7 {[%clk 0:00:14.1]}
50... h2 {[%clk 0:00:03.3]} 51. Rh1 {[%clk 0:00:10.8]} 51... Rxb2+ {[%clk
0:00:03.6]} 52. Ka3 {[%clk 0:00:10.9]} 52... Rxb7 {[%clk 0:00:04.2]} 53. Rxh2
{[%clk 0:00:11.1]} 53... Rb4 {[%clk 0:00:02.5]} 54. Ng5 {[%clk 0:00:09.5]} 54...
Rxc4 {[%clk 0:00:02.6]} 55. Rh7+ {[%clk 0:00:10.3]} 55... Ke8 {[%clk 0:00:01.4]}
56. Nf7 {[%clk 0:00:09.3]} 56... Rc3+ {[%clk 0:00:01.5]} 57. Ka2 {[%clk
0:00:09.2]} 57... Rc2+ {[%clk 0:00:01.4]} 58. Kb1 {[%clk 0:00:09.6]} 58... Rb2+
{[%clk 0:00:01.7]} 59. Kc1 {[%clk 0:00:10.1]} 59... Re2 {[%clk 0:00:01.3]} 60.
Nxd6+ {[%clk 0:00:10]} 60... Kd8 {[%clk 0:00:01]} 61. Rd7# {[%clk 0:00:09.4]}
1-0

[Event "*** Titled Tuesday Blitz"]
[Site "Chess.com"]
[Date "2021.03.09"]
[Round "1"]
[White "Vaathi_Coming"]
[Black "AwareIdea"]
[Result "1-0"]
[WhiteElo "2818"]
[BlackElo "2428"]
[TimeControl "180+1"]
[EndTime "10:08:29 PST"]
[Termination "Vaathi_Coming won on time"]

1. Nf3 {[%clk 0:03:00]} 1... d5 {[%clk 0:02:59.7]} 2. b3 {[%clk 0:03:00]} 2...
Nf6 {[%clk 0:02:58]} 3. Bb2 {[%clk 0:03:00.4]} 3... Bf5 {[%clk 0:02:58]} 4. e3
{[%clk 0:02:59.1]} 4... c6 {[%clk 0:02:58]} 5. Be2 {[%clk 0:02:58.8]} 5... e6
{[%clk 0:02:58.1]} 6. O-O {[%clk 0:02:59]} 6... h6 {[%clk 0:02:58.2]} 7. c4
{[%clk 0:02:59.4]} 7... Be7 {[%clk 0:02:57.4]} 8. Nc3 {[%clk 0:02:53.5]} 8...
O-O {[%clk 0:02:56.8]} 9. d4 {[%clk 0:02:53.3]} 9... Nbd7 {[%clk 0:02:54.7]} 10.
h3 {[%clk 0:02:50.6]} 10... Re8 {[%clk 0:02:51.9]} 11. Bd3 {[%clk 0:02:47.2]}
11... Bxd3 {[%clk 0:02:51.7]} 12. Qxd3 {[%clk 0:02:48.1]} 12... Bf8 {[%clk
0:02:52.3]} 13. Rfd1 {[%clk 0:02:46.5]} 13... Qc7 {[%clk 0:02:42.6]} 14. Rac1
{[%clk 0:02:45.8]} 14... Rad8 {[%clk 0:02:40.5]} 15. Qe2 {[%clk 0:02:31.9]}
15... Qb8 {[%clk 0:02:32.2]} 16. e4 {[%clk 0:02:01.6]} 16... dxe4 {[%clk
0:02:29.7]} 17. Nxe4 {[%clk 0:02:02.5]} 17... Nxe4 {[%clk 0:02:29.8]} 18. Qxe4
{[%clk 0:02:03.4]} 18... Be7 {[%clk 0:02:27.1]} 19. Rc2 {[%clk 0:01:49.8]} 19...
Bf6 {[%clk 0:02:26.6]} 20. Rcd2 {[%clk 0:01:48.9]} 20... Nf8 {[%clk 0:02:23.7]}
21. g3 {[%clk 0:01:44.7]} 21... Rd7 {[%clk 0:02:23.7]} 22. Ne5 {[%clk
0:01:41.2]} 22... Bxe5 {[%clk 0:02:22]} 23. dxe5 {[%clk 0:01:42.1]} 23... Red8
{[%clk 0:02:19.1]} 24. Qe3 {[%clk 0:01:37.8]} 24... Rxd2 {[%clk 0:02:16.6]} 25.
Rxd2 {[%clk 0:01:38.7]} 25... Rxd2 {[%clk 0:02:16.4]} 26. Qxd2 {[%clk
0:01:39.6]} 26... Qc7 {[%clk 0:02:15.5]} 27. Kg2 {[%clk 0:01:34.1]} 27... c5
{[%clk 0:02:13.7]} 28. h4 {[%clk 0:01:03.4]} 28... Nd7 {[%clk 0:02:12.8]} 29.
Qe3 {[%clk 0:00:59.6]} 29... a5 {[%clk 0:02:04.1]} 30. Qe4 {[%clk 0:00:57.5]}
30... b6 {[%clk 0:02:00.8]} 31. h5 {[%clk 0:00:55.7]} 31... Nf8 {[%clk 0:02:00]}
32. g4 {[%clk 0:00:50.1]} 32... Nd7 {[%clk 0:01:53.2]} 33. Bc3 {[%clk 0:00:47]}
33... Nb8 {[%clk 0:01:53]} 34. Qd3 {[%clk 0:00:40.1]} 34... Nc6 {[%clk
0:01:49.7]} 35. f4 {[%clk 0:00:38.8]} 35... Kf8 {[%clk 0:01:43.1]} 36. Kg3
{[%clk 0:00:28]} 36... Qd8 {[%clk 0:01:24.7]} 37. Qd6+ {[%clk 0:00:13.4]} 37...
Qxd6 {[%clk 0:01:21.5]} 38. exd6 {[%clk 0:00:14.3]} 38... Nb8 {[%clk 0:01:12.6]}
39. g5 {[%clk 0:00:14.1]} 39... Nd7 {[%clk 0:01:09.7]} 40. Kg4 {[%clk
0:00:12.3]} 40... f6 {[%clk 0:01:02.9]} 41. gxh6 {[%clk 0:00:10.3]} 41... gxh6
{[%clk 0:01:02.9]} 42. f5 {[%clk 0:00:10.8]} 42... Kf7 {[%clk 0:01:01.7]} 43.
Kf4 {[%clk 0:00:06.7]} 43... Nb8 {[%clk 0:00:54.4]} 44. Ke4 {[%clk 0:00:05.2]}
44... Nd7 {[%clk 0:00:43.4]} 45. Bd2 {[%clk 0:00:04.7]} 45... exf5+ {[%clk
0:00:09.3]} 46. Kxf5 {[%clk 0:00:05.6]} 46... Ne5 {[%clk 0:00:05.9]} 47. Bxh6
{[%clk 0:00:05.1]} 47... Nc6 {[%clk 0:00:05.6]} 48. Be3 {[%clk 0:00:04.2]} 48...
Nb4 {[%clk 0:00:04.3]} 49. h6 {[%clk 0:00:03.4]} 49... Nc2 {[%clk 0:00:03.3]}
50. Bf2 {[%clk 0:00:03.8]} 50... Nd4+ {[%clk 0:00:03.6]} 51. Bxd4 {[%clk
0:00:03.5]} 51... cxd4 {[%clk 0:00:04.5]} 52. h7 {[%clk 0:00:04.1]} 52... Kg7
{[%clk 0:00:04.9]} 53. h8=Q+ {[%clk 0:00:05]} 53... Kxh8 {[%clk 0:00:04.9]} 54.
d7 {[%clk 0:00:05.9]} 54... Kg7 {[%clk 0:00:05.6]} 55. d8=Q {[%clk 0:00:06.4]}
55... d3 {[%clk 0:00:06.5]} 56. Qxf6+ {[%clk 0:00:04.7]} 56... Kh7 {[%clk
0:00:06.5]} 57. Qg6+ {[%clk 0:00:04.8]} 1-0

[Event "*** Titled Tuesday Blitz"]
[Site "Chess.com"]
[Date "2021.03.09"]
[Round "1"]
[White "AndrewMaco"]
[Black "Ladislav1969"]
[Result "0-1"]
[WhiteElo "2595"]
[BlackElo "2327"]
[TimeControl "180+1"]
[EndTime "10:08:29 PST"]
[Termination "Ladislav1969 won on time"]

1. e4 {[%clk 0:03:00.5]} 1... c5 {[%clk 0:02:59.5]} 2. Nf3 {[%clk 0:02:57.3]}
2... e6 {[%clk 0:03:00.4]} 3. b3 {[%clk 0:02:56.1]} 3... d6 {[%clk 0:02:56.6]}
4. Bb2 {[%clk 0:02:51.8]} 4... Nf6 {[%clk 0:02:54.8]} 5. e5 {[%clk 0:02:51.1]}
5... dxe5 {[%clk 0:02:55]} 6. Nxe5 {[%clk 0:02:52]} 6... Nbd7 {[%clk 0:02:54.3]}
7. Nc4 {[%clk 0:02:47.4]} 7... b5 {[%clk 0:02:51.6]} 8. Ne3 {[%clk 0:02:42.4]}
8... a6 {[%clk 0:02:49.8]} 9. a4 {[%clk 0:02:09.3]} 9... b4 {[%clk 0:02:49.5]}
10. Be2 {[%clk 0:02:07.7]} 10... Bb7 {[%clk 0:02:49]} 11. O-O {[%clk 0:02:07.8]}
11... Bd6 {[%clk 0:02:45.6]} 12. Nc4 {[%clk 0:01:27.7]} 12... Bc7 {[%clk
0:02:42.1]} 13. d4 {[%clk 0:01:25.3]} 13... O-O {[%clk 0:02:32.6]} 14. Nbd2
{[%clk 0:01:21.1]} 14... cxd4 {[%clk 0:02:01.7]} 15. Bxd4 {[%clk 0:01:20.5]}
15... Nb6 {[%clk 0:01:52.5]} 16. Bb2 {[%clk 0:00:57.1]} 16... Nbd5 {[%clk
0:01:49.8]} 17. Bf3 {[%clk 0:00:54.6]} 17... Rc8 {[%clk 0:01:47.5]} 18. Qe2
{[%clk 0:00:53]} 18... Bb8 {[%clk 0:01:33.8]} 19. Rfd1 {[%clk 0:00:52.3]} 19...
Qc7 {[%clk 0:01:33]} 20. g3 {[%clk 0:00:51.8]} 20... Nc3 {[%clk 0:01:29.5]} 21.
Bxc3 {[%clk 0:00:51.2]} 21... bxc3 {[%clk 0:01:29.7]} 22. Ne4 {[%clk 0:00:49.2]}
22... Nxe4 {[%clk 0:01:23.4]} 23. Bxe4 {[%clk 0:00:49.6]} 23... Bxe4 {[%clk
0:01:18.8]} 24. Qxe4 {[%clk 0:00:50.5]} 24... Ba7 {[%clk 0:01:19]} 25. Rd3
{[%clk 0:00:44]} 25... Qc5 {[%clk 0:01:14.9]} 26. Qe2 {[%clk 0:00:43.2]} 26...
Qb4 {[%clk 0:01:10.9]} 27. Rad1 {[%clk 0:00:42.5]} 27... Bc5 {[%clk 0:01:07.1]}
28. Qf3 {[%clk 0:00:39.6]} 28... Be7 {[%clk 0:00:58.2]} 29. Rxc3 {[%clk
0:00:39]} 29... Bf6 {[%clk 0:00:58.3]} 30. Rcd3 {[%clk 0:00:39.3]} 30... Rc5
{[%clk 0:00:55.7]} 31. Qe2 {[%clk 0:00:35]} 31... Rf5 {[%clk 0:00:48.3]} 32. Rf3
{[%clk 0:00:32.8]} 32... Rd5 {[%clk 0:00:41.3]} 33. Rfd3 {[%clk 0:00:25.9]}
33... Rfd8 {[%clk 0:00:38.9]} 34. Ne3 {[%clk 0:00:25]} 34... Rxd3 {[%clk
0:00:33.3]} 35. Rxd3 {[%clk 0:00:25.9]} 35... Rc8 {[%clk 0:00:26]} 36. Nc4
{[%clk 0:00:26]} 36... h6 {[%clk 0:00:24.2]} 37. h4 {[%clk 0:00:26.1]} 37... Qc5
{[%clk 0:00:21]} 38. Rd7 {[%clk 0:00:25.7]} 38... Bd4 {[%clk 0:00:19.5]} 39. Qd2
{[%clk 0:00:24.1]} 39... e5 {[%clk 0:00:18.9]} 40. c3 {[%clk 0:00:23.6]} 40...
Qc6 {[%clk 0:00:13.9]} 41. Rxf7 {[%clk 0:00:14.2]} 41... Kxf7 {[%clk 0:00:12.3]}
42. cxd4 {[%clk 0:00:14.6]} 42... Qe6 {[%clk 0:00:07.4]} 43. dxe5 {[%clk
0:00:11.1]} 43... Kg8 {[%clk 0:00:07.3]} 44. Qe3 {[%clk 0:00:11.1]} 44... Rf8
{[%clk 0:00:07]} 45. Nd6 {[%clk 0:00:10.7]} 45... Qd5 {[%clk 0:00:06.2]} 46. f4
{[%clk 0:00:10.1]} 46... Qd1+ {[%clk 0:00:05.7]} 47. Kf2 {[%clk 0:00:10.2]}
47... Qc2+ {[%clk 0:00:06.1]} 48. Kf3 {[%clk 0:00:10.2]} 48... Qd1+ {[%clk
0:00:06.1]} 49. Qe2 {[%clk 0:00:10.2]} 49... Qd5+ {[%clk 0:00:05.9]} 50. Qe4
{[%clk 0:00:10.4]} 50... Qxb3+ {[%clk 0:00:06]} 51. Kg4 {[%clk 0:00:09.7]} 51...
Qd1+ {[%clk 0:00:06.5]} 52. Kh3 {[%clk 0:00:08.8]} 52... Qf1+ {[%clk 0:00:07]}
53. Kh2 {[%clk 0:00:07]} 53... Qf2+ {[%clk 0:00:06.6]} 54. Qg2 {[%clk
0:00:07.5]} 54... Qd4 {[%clk 0:00:06.5]} 55. Qa2+ {[%clk 0:00:07.3]} 55... Kh7
{[%clk 0:00:05.9]} 56. Qb1+ {[%clk 0:00:07.6]} 56... Kg8 {[%clk 0:00:05.3]} 57.
h5 {[%clk 0:00:07.9]} 57... Qf2+ {[%clk 0:00:04.4]} 58. Kh3 {[%clk 0:00:08.1]}
58... Qf3 {[%clk 0:00:04.8]} 59. Kh4 {[%clk 0:00:06.9]} 59... Qg2 {[%clk
0:00:04.4]} 60. Qe4 {[%clk 0:00:00.4]} 60... Qh2+ {[%clk 0:00:03.3]} 0-1